bitfinex-derivatives/quotes_SOLF0:USTF0_20250124
["timestamp","ask_amount","ask_price","bid_price","bid_amount"]
[1737698217512,3.8444,260.19,260.12,0.02677061]
[1737698218612,1.331,260.25,260.12,0.02677061]
[1737698219211,3.8439,260.22,260.12,0.02677061]
[1737698219415,1.331,260.25,260.12,0.02677061]
[1737698220011,9.22689927,260.34,260.16,9.22689927]
[1737698220217,11.81009927,260.34,260.16,9.22689927]
[1737698220407,11.81009927,260.34,260.22,0.0285893]
[1737698220916,3.8436,260.24,260.22,0.0285893]
[1737698221314,9.22689927,260.3,260.22,0.0285893]
[1737698221707,3.8435,260.24,260.22,0.0285893]
[1737698222109,3.8442,260.2,260.14,3.8449]
[1737698222311,9.22689927,260.26,260.14,3.8449]
[1737698222916,9.22689927,260.26,260.08,9.22689927]
[1737698223218,0.02948818,260.2,260.14,0.02782666]
[1737698223422,3.8448,260.16,260.04,13.01529927]
[1737698223718,5.90212466,260.18,260.14,0.02482461]
[1737698223912,5.90212466,260.18,260.08,5.90212466]
[1737698224113,3.845,260.15,260.13,0.02570146]
[1737698224315,0.02591253,260.19,260.13,0.02570146]
[1737698225215,3.8448,260.16,260.13,0.02570146]
[1737698225414,5.90212466,260.17,260.13,0.02570146]
[1737698225815,0.02591253,260.19,260.13,0.02570146]
[1737698226716,3.8449,260.15,260.13,0.02570146]
[1737698227917,3.8459,260.08,260.01,3.8468]
[1737698228118,9.22257073,260.11,259.95,9.22257073]
[1737698228509,9.22257073,260.11,260.01,3.8468]
[1737698228510,3.8459,260.08,260.01,3.8468]
[1737698228710,3.8459,260.08,259.95,9.22257073]
[1737698228914,9.22257073,260.15,259.95,9.22257073]
[1737698229216,3.8455,260.11,259.99,9.24716061]
[1737698229418,0.02770836,260.08,259.99,9.24716061]
[1737698229613,0.02770836,260.08,260.06,3.8461]
[1737698229810,3.8448,260.16,260.03,9.22257073]
[1737698230116,1.2255,260.2,260.03,9.22257073]
[1737698230417,3.8446,260.17,260.03,9.22257073]
[1737698230916,0.02683456,260.13,260.07,0.02431038]
[1737698231411,0.02683456,260.13,260.11,3.8454]
[1737698231612,0.02683456,260.13,260.07,9.24688111]
[1737698231613,10.53557073,260.27,260.07,9.24688111]
[1737698231820,10.53557073,260.27,260.07,9.22257073]
[1737698232912,10.53557073,260.27,260.15,3.8448]
[1737698233417,3.8438,260.23,260.16,3.8446]
[1737698233717,10.52217073,260.31,260.14,0.02483314]
[1737698234119,10.52217073,260.31,260.12,3.7679]
[1737698234321,10.52217073,260.31,260.2,0.02526951]
[1737698235016,9.22257073,260.27,260.2,0.02526951]
[1737698235723,9.22257073,260.23,260.04,3.8526]
[1737698235924,9.22257073,260.23,260.03,9.22257073]
[1737698236126,3.845,260.15,260.06,3.8461]
[1737698236326,9.22257073,260.19,260.06,3.8461]
[1737698237117,3.8454,260.12,260.1,0.02435775]
[1737698238020,9.24895283,260.15,259.99,9.22257073]
[1737698238223,3.8456,260.1,259.99,9.22257073]
[1737698238420,9.22257073,260.15,259.99,9.22257073]
[1737698238616,3.846,260.07,260.01,3.8468]
[1737698238817,9.22257073,260.15,259.95,9.22257073]
[1737698239222,0.02692678,260.08,260.03,0.02591474]
[1737698240525,0.02692678,260.08,260.03,9.24848547]
[1737698240720,2.5967,260.22,260.12,3.8453]
[1737698240927,3.8443,260.19,260.03,9.22257073]
[1737698241523,3.8443,260.19,260.07,3.8459]
[1737698241720,3.8443,260.19,260.03,9.22257073]
[1737698241928,0.02954295,260.16,260.1,0.02463397]
[1737698242324,0.02954295,260.16,260.14,3.8449]
[1737698243725,0.02954295,260.16,260.12,3.8452]
[1737698243928,0.02954295,260.16,260.11,12.97237073]
[1737698244327,0.02954295,260.16,260.12,3.8452]
[1737698244527,0.02954295,260.16,260.11,12.97237073]
[1737698245126,0.02954295,260.16,260.15,3.8448]
[1737698245728,1.3359,260.28,260.11,12.97237073]
[1737698245925,9.22257073,260.31,260.11,12.97237073]
[1737698246231,9.22257073,260.31,260.24,3.8434]
[1737698246532,1.2226,260.33,260.15,9.22257073]
[1737698246936,1.2226,260.33,260.21,0.02509537]
[1737698247637,9.22257073,260.31,260.21,0.02509537]
[1737698248135,3.8438,260.23,260.21,0.02509537]
[1737698248335,9.22257073,260.31,260.21,0.02509537]
[1737698248736,14.47587531,260.35,260.21,0.02509537]
[1737698249038,5.25330458,260.35,260.24,9.22257073]
[1737698249434,5.25330458,260.35,260.27,0.02923605]
[1737698249634,9.22257073,260.39,260.27,0.02923605]
[1737698250738,3.8423,260.32,260.27,0.02923605]
[1737698250938,9.22257073,260.43,260.27,0.02923605]
[1737698251145,3.8414,260.39,260.29,3.8427]
[1737698251438,9.22257073,260.43,260.32,0.02822688]
[1737698251838,3.8417,260.37,260.32,0.02822688]
[1737698252035,9.22257073,260.43,260.32,0.02822688]
[1737698252441,3.8414,260.39,260.32,3.87052688]
[1737698252641,3.8414,260.39,260.32,0.02822688]
[1737698252843,1.2642,260.44,260.32,0.02822688]
[1737698253044,3.8409,260.42,260.36,3.8417]
[1737698253440,3.8409,260.42,260.36,3.86970152]
[1737698254145,1.2525,260.46,260.36,0.02800152]
[1737698254349,1.2434,260.5,260.36,0.02800152]
[1737698254545,7.4316,260.49,260.36,0.02800152]
[1737698254740,3.8403,260.46,260.4,3.841]
[1737698254945,7.4316,260.49,260.36,0.02800152]
[1737698255146,7.4316,260.49,260.33,3.8607]
[1737698255347,7.4316,260.49,260.4,0.02839063]
[1737698255749,7.4316,260.49,260.4,3.86949063]
[1737698255750,3.8402,260.47,260.4,3.86949063]
[1737698256042,7.4316,260.49,260.4,3.86949063]
[1737698256246,7.4316,260.49,260.4,0.02839063]
[1737698257849,7.4316,260.49,260.42,3.8408]
[1737698258144,9.22257073,260.48,260.4,0.02839063]
[1737698259048,9.22257073,260.48,260.41,3.841]
[1737698259745,7.4316,260.49,260.41,3.841]
[1737698260050,3.8402,260.47,260.4,0.02839063]
[1737698260245,7.4316,260.49,260.4,0.02839063]
[1737698261145,3.8403,260.46,260.4,3.86939063]
[1737698261349,7.4316,260.49,260.4,0.02839063]
[1737698261542,9.22257073,260.48,260.4,0.02839063]
[1737698264349,3.8409,260.42,260.4,0.02839063]
[1737698264950,9.22257073,260.44,260.27,3.8002]
[1737698265347,9.22257073,260.4,260.31,3.8424]
[1737698265547,9.22257073,260.4,260.27,2.556]
[1737698266046,3.8419,260.36,260.29,3.8427]
[1737698266353,3.8419,260.36,260.31,0.02694541]
[1737698266354,3.86889812,260.36,260.31,0.02694541]
[1737698266550,0.02699812,260.36,260.32,3.8423]
[1737698268050,0.02699812,260.36,260.31,0.02694541]
[1737698268243,0.02699812,260.36,260.34,3.842]
[1737698269960,9.22257073,260.48,260.42,3.8408]
[1737698270254,9.22257073,260.48,260.3,9.22257073]
[1737698270952,9.22257073,260.48,260.39,3.8412]
[1737698271356,3.8407,260.44,260.36,0.02565757]
[1737698271551,3.8407,260.44,260.37,3.8415]
[1737698271947,3.8404,260.45,260.37,3.8415]
[1737698272152,9.22257073,260.48,260.37,3.8415]
[1737698272557,9.22257073,260.48,260.38,3.8414]
[1737698272558,3.8406,260.44,260.38,3.8414]
[1737698273158,9.22257073,260.48,260.36,0.02565757]
[1737698274153,3.8403,260.46,260.4,3.8411]
[1737698274558,3.8403,260.46,260.4,3.86828698]
[1737698275059,7.4316,260.49,260.42,3.8408]
[1737698275357,7.4316,260.49,260.4,0.02718698]
[1737698275770,3.84,260.48,260.43,3.8407]
[1737698275956,7.4316,260.49,260.4,0.02718698]
[1737698276154,3.8407,260.43,260.4,0.02718698]
[1737698276658,9.22257073,260.48,260.4,0.02718698]
[1737698276954,7.4316,260.49,260.4,0.02718698]
[1737698277159,7.4316,260.49,260.4,9.24975771]
[1737698277353,7.4316,260.49,260.41,2.5448]
[1737698277557,7.4316,260.49,260.41,3.876]
[1737698277861,7.4316,260.49,260.47,3.8401]
[1737698278461,7.4316,260.49,260.45,3.86890102]
[1737698278761,16.65417073,260.49,260.45,0.02860102]
[1737698279861,7.4316,260.49,260.45,0.02860102]
[1737698280555,7.4316,260.49,260.47,3.84]
[1737698280755,7.4316,260.49,260.45,0.02860102]
[1737698281763,7.4316,260.49,260.47,3.84]
[1737698282166,7.4316,260.49,260.45,0.02860102]
[1737698282363,7.4316,260.49,260.46,3.8402]
[1737698282665,7.4316,260.49,260.45,0.02860102]
[1737698283365,16.65417073,260.49,260.45,0.02860102]
[1737698283560,3.8402,260.47,260.45,0.02860102]
[1737698283967,16.65417073,260.49,260.34,1.2911]
[1737698284167,3.8411,260.41,260.34,1.2911]
[1737698284368,9.22257073,260.43,260.26,9.22257073]
[1737698284764,9.22257073,260.39,260.22,9.22257073]
[1737698285164,0.02623347,260.34,260.28,0.02930105]
[1737698285864,0.02623347,260.34,260.32,3.8423]
[1737698286359,0.02623347,260.34,260.28,0.02930105]
[1737698286565,3.8425,260.31,260.28,0.02930105]
[1737698286764,9.22257073,260.32,260.28,0.02930105]
[1737698286962,0.02623347,260.34,260.28,0.02930105]
[1737698286963,3.8427,260.3,260.28,0.02930105]
[1737698287167,0.02623347,260.34,260.28,0.02930105]
[1737698288860,0.02623347,260.34,260.31,3.8424]
[1737698289269,0.02623347,260.34,260.28,0.02930105]
[1737698289572,0.02623347,260.34,260.32,3.8423]
[1737698293164,9.22257073,260.45,260.33,3.8422]
[1737698293369,9.22257073,260.45,260.25,9.22257073]
[1737698293760,9.22257073,260.5,260.3,9.22257073]
[1737698293961,18.31437531,260.58,260.47,3.84]
[1737698294169,14.47587531,260.58,260.47,3.84]
[1737698294469,14.47587531,260.58,260.37,9.22257073]
[1737698294665,14.47587531,260.58,260.45,0.02460744]
[1737698295068,9.22257073,260.58,260.45,0.02460744]
[1737698295867,34.30708995,260.54,260.46,9.22257073]
[1737698296169,16.2586136,260.54,260.5,9.22257073]
[1737698296472,16.2586136,260.54,260.53,3.8392]
[1737698298677,9.22257073,260.73,260.59,3.8382]
[1737698298974,9.22257073,260.73,260.53,9.22257073]
[1737698299272,9.22257073,260.73,260.62,3.86605463]
[1737698299473,9.22257073,260.73,260.62,0.02825463]
[1737698300672,3.8366,260.71,260.63,3.8377]
[1737698301271,3.8362,260.74,260.65,3.8374]
[1737698301467,15.75991374,260.78,260.62,9.22257073]
[1737698301672,9.22257073,260.77,260.67,0.02494079]
[1737698301872,3.8362,260.74,260.67,0.02494079]
[1737698302067,9.22257073,260.77,260.67,0.02494079]
[1737698302570,3.8363,260.73,260.62,9.39390152]
[1737698303072,9.22257073,260.77,260.62,5.55610152]
[1737698303274,3.8364,260.73,260.63,3.8377]
[1737698303572,9.22257073,260.77,260.62,5.55610152]
[1737698303773,0.0263657,260.71,260.65,0.02933346]
[1737698304474,3.8372,260.67,260.65,0.02933346]
[1737698306174,3.8382,260.6,260.5,64.56700184]
[1737698306376,1.2983,260.68,260.52,3.8393]
[1737698306677,1.2983,260.68,260.5,64.56700184]
[1737698307168,9.22257073,260.65,260.46,12.86257073]
[1737698307374,0.02896122,260.62,260.56,0.02915705]
[1737698307575,9.22257073,260.61,260.56,0.02915705]
[1737698307871,3.8386,260.57,260.56,0.02915705]
[1737698308572,9.22257073,260.57,260.4,1.2575]
[1737698308877,9.22257073,260.57,260.38,9.22257073]
[1737698309273,9.22257073,260.57,260.4,3.8411]
[1737698309579,0.02656542,260.51,260.46,0.02941973]
[1737698311077,0.02656542,260.51,260.48,3.84]
[1737698311877,0.02656542,260.51,260.46,0.02941973]
[1737698312375,3.8399,260.49,260.46,0.02941973]
[1737698312970,0.02656542,260.51,260.48,3.8399]
[1737698313176,0.02656542,260.51,260.46,0.02941973]
[1737698313473,0.02656542,260.51,260.48,3.8399]
[1737698313876,0.02656542,260.51,260.46,0.02941973]
[1737698314181,0.02656542,260.51,260.49,3.8397]
[1737698314678,3.8364,260.73,260.63,3.8377]
[1737698314882,14.71850772,260.75,260.54,14.71850772]
[1737698315779,0.02883825,260.67,260.62,0.02733592]
[1737698316781,17.34930772,260.8,260.62,0.02733592]
[1737698316978,17.34930772,260.8,260.54,14.71850772]
[1737698317179,1.3205,260.8,260.7,3.8367]
[1737698317376,1.3205,260.8,260.64,14.71850772]
[1737698318081,0.02870276,260.75,260.69,0.02815325]
[1737698318379,0.02870276,260.75,260.7,3.8367]
[1737698319582,0.02870276,260.75,260.7,3.8366]
[1737698320083,0.02870276,260.75,260.69,0.02815325]
[1737698320577,0.02870276,260.75,260.69,14.74666097]
[1737698321477,3.835,260.82,260.73,3.8362]
[1737698321674,1.2586,260.9,260.69,14.71850772]
[1737698321880,1.2586,260.9,260.72,3.8363]
[1737698322481,1.2586,260.9,260.78,0.02863492]
[1737698323182,3.8345,260.86,260.78,0.02863492]
[1737698323583,71.82,260.96,260.78,0.02863492]
[1737698323780,3.8341,260.88,260.78,0.02863492]
[1737698324085,1.3136,260.95,260.81,3.835]
[1737698324276,14.71850772,261.04,260.84,14.71850772]
[1737698324482,14.71850772,261.09,260.85,0.02939268]
[1737698324782,14.71850772,261.09,260.84,14.71850772]
[1737698324984,14.71850772,261.09,260.94,0.02645058]
[1737698325178,5.25330458,261.1,260.94,14.7449583]
[1737698325383,3.8311,261.09,261.0,3.8322]
[1737698325586,5.25330458,261.1,260.99,14.74691938]
[1737698325980,5.25330458,261.1,260.99,0.02841166]
[1737698326683,5.25330458,261.1,261.01,3.8321]
[1737698326885,5.25330458,261.1,260.99,0.02841166]
[1737698327578,1.2177,261.09,260.99,0.02841166]
[1737698327778,1.2177,261.09,260.95,3.833]
[1737698327981,1.2177,261.09,261.01,0.02480666]
[1737698328784,3.8318,261.04,261.01,0.02480666]
[1737698329088,1.2177,261.09,261.01,0.02480666]
[1737698331086,14.71850772,261.24,261.01,14.74331438]
[1737698331286,3.83,261.16,261.01,14.71850772]
[1737698331487,17.21150772,261.24,261.1,0.02600569]
[1737698331886,14.71850772,261.19,261.1,0.02600569]
[1737698332284,3.8307,261.12,261.1,0.02600569]
[1737698333283,2.493,261.24,261.1,0.02600569]
[1737698333681,3.8294,261.2,261.1,0.02600569]
[1737698333882,154.91032476,261.51,261.13,3.8303]
[1737698334088,3.745,261.4,261.07,14.71850772]
[1737698334289,3.8294,261.2,261.19,0.02896741]
[1737698334882,3.8293,261.21,261.19,0.02896741]
[1737698335384,3.8286,261.26,261.19,0.02896741]
[1737698335586,3.8286,261.26,261.12,14.71850772]
[1737698335785,3.8286,261.26,261.2,0.02586958]
[1737698336090,14.71850772,261.35,261.2,0.02586958]
[1737698337183,1.2611,261.39,261.2,0.02586958]
[1737698337385,1.2611,261.39,261.12,14.71850772]
[1737698337591,14.71850772,261.37,261.27,0.02501562]
[1737698338190,1.2611,261.39,261.27,0.02501562]
[1737698338386,3.8275,261.33,261.27,0.02501562]
[1737698338691,1.2611,261.39,261.27,0.02501562]
[1737698339489,3.8281,261.29,261.27,0.02501562]
[1737698339691,3.8281,261.29,261.27,1.562e-05]
[1737698340982,18.54660772,261.29,261.27,1.562e-05]
[1737698341682,14.71850772,261.29,261.07,17.25870772]
[1737698342085,14.71850772,261.29,261.07,16.02500772]
[1737698342490,3.8301,261.16,261.09,3.8309]
[1737698342691,14.71850772,261.29,261.07,1.3065]
[1737698342890,0.02598902,261.15,261.1,0.02654579]
[1737698343085,3.8299,261.17,261.1,3.8308]
[1737698343393,0.02427203,261.15,261.1,0.02591584]
[1737698343894,0.02551919,261.15,261.1,0.02877922]
[1737698344296,0.02551919,261.15,261.12,3.8305]
[1737698344691,0.02551919,261.15,261.1,0.02877922]
[1737698345293,2.6031,261.35,261.12,14.71850772]
[1737698345498,3.8283,261.28,261.12,14.71850772]
[1737698345694,3.8283,261.28,261.13,1.2324]
[1737698345995,2.6031,261.35,261.2,3.8293]
[1737698346290,2.6031,261.35,261.13,1.2324]
[1737698346500,2.6031,261.35,261.25,0.0267199]
[1737698347397,3.828,261.3,261.25,0.0267199]
[1737698347898,2.6031,261.35,261.25,0.0267199]
[1737698348698,14.71850772,261.39,261.25,0.0267199]
[1737698349997,14.71850772,261.44,261.25,0.0267199]
[1737698351000,14.71850772,261.44,261.25,3.8553199]
[1737698351403,14.71850772,261.44,261.25,0.0267199]
[1737698351600,3.828,261.3,261.25,0.0267199]
[1737698351799,14.71850772,261.39,261.25,0.0267199]
[1737698352103,3.8284,261.28,261.25,0.0267199]
[1737698352301,1.2998,261.36,261.25,0.0267199]
[1737698354105,3.8275,261.33,261.25,0.0267199]
[1737698354306,1.2998,261.36,261.25,0.0267199]
[1737698358909,3.828,261.3,261.25,0.0267199]
[1737698359105,1.2998,261.36,261.25,0.0267199]
[1737698359310,3.8275,261.33,261.27,3.8283]
[1737698359906,1.2998,261.36,261.3,3.8279]
[1737698360213,14.71850772,261.44,261.23,14.71850772]
[1737698360413,1.2127,261.43,261.3,0.02942968]
[1737698360606,3.827,261.37,261.31,3.8277]
[1737698360811,1.2127,261.43,261.3,0.02942968]
[1737698361711,3.8285,261.27,261.2,3.8293]
[1737698361913,14.71850772,261.39,261.11,14.71850772]
[1737698362303,14.71850772,261.39,261.09,2.516]
[1737698362304,14.71850772,261.39,261.16,14.71850772]
[1737698362709,3.8281,261.29,261.23,3.8289]
[1737698363013,0.02893767,261.3,261.25,0.02699592]
[1737698363313,0.02893767,261.3,261.25,3.85559592]
[1737698363515,0.02893767,261.3,261.25,0.02699592]
[1737698363915,0.02893767,261.3,261.28,3.8281]
[1737698364215,0.02893767,261.3,261.25,0.02699592]
[1737698366407,3.8284,261.27,261.25,0.02699592]
[1737698367319,3.8283,261.28,261.25,0.02699592]
[1737698368812,3.8284,261.27,261.25,0.02699592]
[1737698371314,0.02893767,261.3,261.25,0.02699592]
[1737698371519,3.8283,261.28,261.25,0.02699592]
[1737698372221,0.02893767,261.3,261.25,0.02699592]
[1737698372423,3.8284,261.27,261.25,0.02699592]
[1737698376221,3.8282,261.28,261.25,0.02699592]
[1737698376423,0.02893767,261.3,261.25,0.02699592]
[1737698376624,0.02893767,261.3,261.26,3.8285]
[1737698377223,0.02893767,261.3,261.25,0.02699592]
[1737698377524,0.02893767,261.3,261.27,3.8283]
[1737698378421,0.02893767,261.3,261.25,0.02699592]
[1737698378623,0.02893767,261.3,261.26,3.8284]
[1737698378816,0.02893767,261.3,261.25,0.02699592]
[1737698379117,3.8281,261.29,261.25,0.02699592]
[1737698379317,0.02893767,261.3,261.25,0.02699592]
[1737698380823,3.8284,261.27,261.25,0.02699592]
[1737698383023,0.02893767,261.3,261.15,3.71804]
[1737698383024,3.8296,261.19,261.15,3.71804]
[1737698383327,14.71850772,261.24,261.15,3.71804]
[1737698383529,1.2183,261.23,261.15,3.71804]
[1737698384323,3.8295,261.2,261.16,0.02841659]
[1737698384525,0.0252392,261.22,261.16,0.02841659]
[1737698385622,3.8294,261.21,261.16,0.02841659]
[1737698385926,0.0252392,261.22,261.16,0.02841659]
[1737698386429,0.0252392,261.22,261.17,3.8298]
[1737698386617,0.0252392,261.22,261.16,0.02841659]
[1737698387018,0.0252392,261.22,261.18,3.8297]
[1737698387227,0.0252392,261.22,261.16,0.02841659]
[1737698388122,0.0252392,261.22,261.17,3.8298]
[1737698388322,0.0252392,261.22,261.16,0.02841659]
[1737698389229,0.0252392,261.22,261.2,3.8293]
[1737698391825,14.71850772,261.39,261.27,3.8283]
[1737698392632,14.71850772,261.39,261.16,2.4341]
[1737698392930,0.02436332,261.3,261.25,0.02662228]
[1737698393125,0.02436332,261.3,261.26,3.8284]
[1737698393332,0.02436332,261.3,261.25,0.02662228]
[1737698393731,3.8284,261.27,261.25,0.02662228]
[1737698394937,3.8282,261.28,261.25,0.02662228]
[1737698395937,3.8282,261.29,261.25,0.02662228]
[1737698396135,0.02436332,261.3,261.25,0.02662228]
[1737698396628,3.8284,261.27,261.25,0.02662228]
[1737698396834,0.02436332,261.3,261.15,3.71804]
[1737698397038,1.3126,261.29,261.15,3.71804]
[1737698397337,3.8286,261.26,261.19,3.8295]
[1737698398142,0.02761022,261.25,261.2,0.02675517]
[1737698400337,9.14642005,261.38,261.2,0.02675517]
[1737698400538,5.25330458,261.39,261.23,9.14642005]
[1737698400837,5.25330458,261.39,261.24,1.3075]
[1737698401037,5.25330458,261.39,261.27,9.14642005]
[1737698401531,0.02820317,261.36,261.31,9.14642005]
[1737698401733,14.97571832,261.43,261.35,9.14642005]
[1737698402135,41.75507807,261.44,261.39,9.14642005]
[1737698402339,23.36547807,261.44,261.43,12.97242005]
[1737698403139,17.61037807,261.44,261.43,12.97242005]
[1737698403336,17.61037807,261.44,261.43,9.14642005]
[1737698403535,17.61037807,261.44,261.42,9.14642005]
[1737698403738,17.61037807,261.44,261.41,0.02692689]
[1737698404038,17.61037807,261.44,261.42,3.8261]
[1737698404240,17.61037807,261.44,261.41,0.02692689]
[1737698404439,0.63969611,261.46,261.41,0.02692689]
[1737698404638,104.88615963,261.48,261.47,3.8254]
[1737698405230,2.4917,261.64,261.51,3.8247]
[1737698405231,3.8232,261.63,261.51,3.8247]
[1737698405546,78.59699869,261.81,261.52,14.59890623]
[1737698405834,3.8221,261.7,261.58,3.8238]
[1737698406035,3.84,261.77,261.57,14.59890623]
[1737698406338,18.43890623,261.77,261.61,0.02663972]
[1737698406846,14.59890623,261.72,261.51,14.59890623]
[1737698407341,14.59890623,261.66,261.47,3.68]
[1737698407544,14.59890623,261.74,261.49,14.59890623]
[1737698408235,0.0292897,261.64,261.59,0.02870912]
[1737698408435,3.8233,261.62,261.49,14.59890623]
[1737698408634,14.59890623,261.69,261.49,14.59890623]
[1737698408836,3.85235324,261.64,261.59,0.02641932]
[1737698409040,0.02935324,261.64,261.49,14.59890623]
[1737698409340,0.02935324,261.64,261.59,0.02462076]
[1737698412637,0.02935324,261.64,261.62,3.8232]
[1737698413140,0.02935324,261.64,261.61,3.8233]
[1737698413339,0.02935324,261.64,261.59,0.02462076]
[1737698414937,3.8235,261.61,261.59,0.02462076]
[1737698415143,2.571,261.63,261.44,14.59890623]
[1737698415344,3.824,261.57,261.5,3.8249]
[1737698415646,2.571,261.63,261.44,14.59890623]
[1737698415945,3.8238,261.59,261.44,14.59890623]
[1737698416143,14.59890623,261.69,261.44,14.59890623]
[1737698416345,0.02575132,261.54,261.49,0.02542803]
[1737698416839,0.02655825,261.54,261.49,0.02709186]
[1737698417245,3.825,261.51,261.49,0.02709186]
[1737698417748,3.79393914,261.51,261.49,0.02709186]
[1737698418345,1.3281,261.53,261.34,14.59890623]
[1737698419346,0.02615823,261.46,261.41,0.02463018]
[1737698419740,3.8262,261.42,261.41,0.02463018]
[1737698419943,0.02615823,261.46,261.29,14.59890623]
[1737698420147,15.92700623,261.53,261.29,14.59890623]
[1737698420446,14.59890623,261.48,261.24,14.59890623]
[1737698420641,1.3213,261.52,261.29,14.59890623]
[1737698421047,0.02777436,261.43,261.38,0.02728835]
[1737698421844,3.8262,261.42,261.38,0.02728835]
[1737698422049,0.02777436,261.43,261.38,0.02728835]
[1737698422443,0.02777436,261.43,261.19,5.47980971]
[1737698422643,14.59890623,261.43,261.19,5.47980971]
[1737698422846,3.8262,261.42,261.31,3.8278]
[1737698423053,1.3213,261.52,261.25,14.59890623]
[1737698423349,1.2494,261.51,261.25,14.59890623]
[1737698423553,0.02861106,261.41,261.36,0.02734724]
[1737698423954,1.106e-05,261.41,261.36,14.62625347]
[1737698424154,1.106e-05,261.41,261.39,3.8265]
[1737698424555,1.106e-05,261.41,261.36,0.02734724]
[1737698424754,1.106e-05,261.41,261.39,3.8266]
[1737698425753,1.106e-05,261.41,261.36,0.02734724]
[1737698426157,15.84830623,261.51,261.36,0.02734724]
[1737698426958,3.8257,261.46,261.38,3.8267]
[1737698427160,1.2494,261.51,261.26,14.59890623]
[1737698427357,3.85044699,261.45,261.39,0.02657206]
[1737698427558,0.02464699,261.45,261.39,0.02657206]
[1737698429157,2.5882,261.65,261.39,0.02657206]
[1737698429359,1.2664,261.6,261.38,14.59890623]
[1737698429660,2.5882,261.65,261.48,3.8252]
[1737698429851,3.8845,261.65,261.44,14.59890623]
[1737698430056,3.8845,261.65,261.49,14.59890623]
[1737698430258,0.02581452,261.57,261.52,0.02495817]
[1737698430862,0.02581452,261.57,261.53,3.8245]
[1737698431062,0.02581452,261.57,261.52,0.02495817]
[1737698432360,0.02581452,261.57,261.55,3.8242]
[1737698432660,0.00116003,261.57,261.55,3.8242]
[1737698432857,1.2139,261.7,261.53,14.59890623]
[1737698433156,3.8224,261.68,261.6,3.8235]
[1737698433359,1.2139,261.7,261.53,14.59890623]
[1737698433557,14.59890623,261.69,261.47,14.59890623]
[1737698434055,3.8239,261.58,261.55,0.02748713]
[1737698434360,0.02862541,261.61,261.55,0.02748713]
[1737698435060,3.824,261.57,261.55,0.02748713]
[1737698435254,0.02862541,261.61,261.55,0.02748713]
[1737698435760,3.824,261.57,261.55,0.02748713]
[1737698437061,3.8238,261.59,261.5,101.9976056]
[1737698437263,1.2139,261.7,261.5,101.9976056]
[1737698437663,1.2139,261.7,261.51,101.9976056]
[1737698438264,0.02465476,261.63,261.59,3.8236]
[1737698438667,0.02465476,261.63,261.58,0.02758067]
[1737698438859,0.02465476,261.63,261.61,3.8233]
[1737698440769,14.59890623,261.79,261.6,101.9976056]
[1737698441074,1.2952,261.83,261.6,101.9976056]
[1737698441371,1.2973,261.78,261.6,101.9976056]
[1737698441771,3.8221,261.7,261.66,0.02716652]
[1737698441974,0.0241607,261.72,261.66,0.02716652]
[1737698442174,0.0241607,261.72,261.62,101.9976056]
[1737698442867,3.8228,261.65,261.62,101.9976056]
[1737698443073,1.2439,261.77,261.62,101.9976056]
[1737698443465,1.2439,261.77,261.67,0.02410739]
[1737698443466,0.0281712,261.72,261.67,0.02410739]
[1737698443771,0.0281712,261.72,261.57,101.9976056]
[1737698444073,3.8237,261.59,261.57,101.9976056]
[1737698444269,3.8237,261.59,261.57,99.9854056]
[1737698445075,0.02830397,261.61,261.55,0.02420212]
[1737698445378,3.8236,261.6,261.55,0.02420212]
[1737698445577,0.02830397,261.61,261.55,0.02420212]
[1737698446676,3.8236,261.6,261.55,0.02420212]
[1737698446877,1.329,261.6,261.55,0.02420212]
[1737698447277,0.02830397,261.61,261.55,0.02420212]
[1737698448881,3.824,261.57,261.55,0.02420212]
[1737698449384,0.02830397,261.61,261.55,0.02420212]
[1737698451083,0.02830397,261.61,261.56,3.8241]
[1737698451381,0.02830397,261.61,261.55,0.02420212]
[1737698452083,3.823,261.64,261.58,3.8238]
[1737698453287,3.8494751,261.64,261.58,3.8238]
[1737698453579,0.0264751,261.64,261.57,3.8239]
[1737698453973,0.0264751,261.64,261.55,0.02420212]
[1737698455180,0.0264751,261.64,261.59,3.8236]
[1737698455380,0.0264751,261.64,261.55,0.02420212]
[1737698455781,0.0264751,261.64,261.6,3.8235]
[1737698456684,0.0264751,261.64,261.55,0.02420212]
[1737698457182,3.8494751,261.64,261.55,0.02420212]
[1737698457576,0.0264751,261.64,261.55,0.02420212]
[1737698458277,0.0264751,261.64,261.57,14.59890623]
[1737698458680,0.0264751,261.64,261.59,3.8237]
[1737698459286,0.0264751,261.64,261.55,0.02420212]